[Event "*** Titled Tuesday Blitz"]
[Site "Chess.com"]
[Date "2020.05.05"]
[Round "6"]
[White "kingofthenil"]
[Black "DrVelja"]
[Result "0-1"]
[WhiteElo "2468"]
[BlackElo "2644"]
[TimeControl "180+1"]
[EndTime "11:06:54 PDT"]
[Termination "DrVelja won by checkmate"]

1. d4 {[%clk 0:03:00.4]} 1... Nf6 {[%clk 0:02:59.8]} 2. c4 {[%clk 0:03:00.8]}
2... g6 {[%clk 0:02:59.7]} 3. Nc3 {[%clk 0:03:01.3]} 3... d5 {[%clk 0:03:00]} 4.
Nf3 {[%clk 0:03:00.9]} 4... Bg7 {[%clk 0:02:59.4]} 5. e3 {[%clk 0:03:01.8]} 5...
O-O {[%clk 0:02:58.7]} 6. cxd5 {[%clk 0:03:02.7]} 6... Nxd5 {[%clk 0:02:59.4]}
7. Bc4 {[%clk 0:03:03.6]} 7... Nxc3 {[%clk 0:02:59.8]} 8. bxc3 {[%clk
0:03:04.4]} 8... c5 {[%clk 0:03:00.7]} 9. O-O {[%clk 0:03:02.6]} 9... Qc7 {[%clk
0:03:01.6]} 10. Qe2 {[%clk 0:03:01.4]} 10... Nc6 {[%clk 0:03:01.5]} 11. Ba3
{[%clk 0:03:01.4]} 11... b6 {[%clk 0:03:01.5]} 12. Rac1 {[%clk 0:03:00.8]} 12...
Bb7 {[%clk 0:03:01.3]} 13. Rfd1 {[%clk 0:03:01.3]} 13... Rac8 {[%clk 0:02:59.3]}
14. h4 {[%clk 0:02:59.4]} 14... Rfd8 {[%clk 0:02:55.3]} 15. Ng5 {[%clk
0:02:58.4]} 15... e6 {[%clk 0:02:53]} 16. h5 {[%clk 0:02:57.8]} 16... Qe7 {[%clk
0:02:48.8]} 17. Qg4 {[%clk 0:02:55.4]} 17... Na5 {[%clk 0:02:44.7]} 18. Bd3
{[%clk 0:02:48.8]} 18... Qf6 {[%clk 0:01:48.3]} 19. hxg6 {[%clk 0:02:14.8]}
19... hxg6 {[%clk 0:01:49.2]} 20. Qh4 {[%clk 0:02:07.8]} 20... Rd5 {[%clk
0:01:45.5]} 21. Qh7+ {[%clk 0:02:04]} 21... Kf8 {[%clk 0:01:45.3]} 22. Ne4
{[%clk 0:02:03.2]} 22... Qe7 {[%clk 0:01:44.6]} 23. Qh2 {[%clk 0:01:17]} 23...
Rh5 {[%clk 0:01:40.2]} 24. Qg3 {[%clk 0:01:02.9]} 24... Bxe4 {[%clk 0:01:37.6]}
25. Bxe4 {[%clk 0:01:03.8]} 25... Nc4 {[%clk 0:01:37.9]} 26. dxc5 {[%clk
0:00:47.8]} 26... Nxa3 {[%clk 0:01:26.2]} 27. c6 {[%clk 0:00:46.3]} 27... Be5
{[%clk 0:01:26.4]} 28. Qf3 {[%clk 0:00:41.1]} 28... f5 {[%clk 0:00:45]} 29. Rd7
{[%clk 0:00:31.4]} 29... Qh4 {[%clk 0:00:44.6]} 30. g3 {[%clk 0:00:22.4]} 30...
Qxe4 {[%clk 0:00:42.7]} 31. Qd1 {[%clk 0:00:12.4]} 31... Rh1# {[%clk 0:00:40.5]}
0-1

[Event "*** Titled Tuesday Blitz"]
[Site "Chess.com"]
[Date "2020.05.05"]
[Round "6"]
[White "lupta_robin"]
[Black "Kobalia"]
[Result "0-1"]
[WhiteElo "2510"]
[BlackElo "2739"]
[TimeControl "180+1"]
[EndTime "11:06:56 PDT"]
[Termination "Kobalia won by resignation"]

1. e4 {[%clk 0:03:00.9]} 1... c6 {[%clk 0:02:59.8]} 2. d4 {[%clk 0:02:59.1]}
2... d5 {[%clk 0:02:59.9]} 3. Nc3 {[%clk 0:02:58.5]} 3... g6 {[%clk 0:02:57.4]}
4. Nf3 {[%clk 0:02:55.4]} 4... Bg7 {[%clk 0:02:57.5]} 5. h3 {[%clk 0:02:54.5]}
5... Nh6 {[%clk 0:02:49.9]} 6. Bd3 {[%clk 0:02:46.7]} 6... O-O {[%clk
0:02:47.9]} 7. O-O {[%clk 0:02:44.3]} 7... f6 {[%clk 0:02:48.1]} 8. Qe2 {[%clk
0:02:37.4]} 8... Nf7 {[%clk 0:02:47.4]} 9. Re1 {[%clk 0:02:25.7]} 9... Re8
{[%clk 0:02:46.7]} 10. Bf4 {[%clk 0:02:13.6]} 10... Na6 {[%clk 0:02:46.1]} 11.
e5 {[%clk 0:01:52.4]} 11... Nb4 {[%clk 0:02:37.5]} 12. exf6 {[%clk 0:01:50.3]}
12... Bxf6 {[%clk 0:02:37.1]} 13. Ne5 {[%clk 0:01:47.2]} 13... Nxd3 {[%clk
0:02:36.6]} 14. Qxd3 {[%clk 0:01:46.5]} 14... Bf5 {[%clk 0:02:35.1]} 15. Qd2
{[%clk 0:01:46.8]} 15... Nd6 {[%clk 0:02:22.2]} 16. b3 {[%clk 0:01:34.6]} 16...
Qa5 {[%clk 0:02:15.2]} 17. Re2 {[%clk 0:01:27.9]} 17... Nb5 {[%clk 0:02:05.7]}
18. Nxb5 {[%clk 0:01:16.8]} 18... Qxd2 {[%clk 0:02:03.8]} 19. Rxd2 {[%clk
0:01:13.5]} 19... cxb5 {[%clk 0:02:04.7]} 20. g4 {[%clk 0:01:05.8]} 20... Be4
{[%clk 0:02:02.1]} 21. Nd7 {[%clk 0:00:54.9]} 21... g5 {[%clk 0:01:59.5]} 22.
Be3 {[%clk 0:00:48.7]} 22... Rac8 {[%clk 0:01:57.6]} 23. Rc1 {[%clk 0:00:40.8]}
23... b6 {[%clk 0:01:52.8]} 24. Nxf6+ {[%clk 0:00:38.4]} 24... exf6 {[%clk
0:01:52.1]} 25. h4 {[%clk 0:00:24.9]} 25... h6 {[%clk 0:01:48.7]} 26. Kh2 {[%clk
0:00:25.2]} 26... Rc6 {[%clk 0:01:47.4]} 27. Kg3 {[%clk 0:00:24.9]} 27... Rec8
{[%clk 0:01:46.4]} 28. hxg5 {[%clk 0:00:24.1]} 28... fxg5 {[%clk 0:01:46]} 29.
f3 {[%clk 0:00:23.8]} 29... Bh7 {[%clk 0:01:36.8]} 30. Rh1 {[%clk 0:00:23.5]}
30... Rc3 {[%clk 0:01:34]} 31. Kf2 {[%clk 0:00:22.3]} 31... Kg7 {[%clk
0:01:29.6]} 32. Rc1 {[%clk 0:00:21.9]} 32... b4 {[%clk 0:01:26]} 33. Re2 {[%clk
0:00:22]} 33... Rf8 {[%clk 0:01:08.6]} 34. Kg2 {[%clk 0:00:20.4]} 34... a5
{[%clk 0:01:02.6]} 35. Rf1 {[%clk 0:00:20.3]} 35... Bxc2 {[%clk 0:00:58.2]} 36.
Bd2 {[%clk 0:00:20.5]} 36... Bd3 {[%clk 0:00:56.3]} 37. Re7+ {[%clk 0:00:19.6]}
37... Kf6 {[%clk 0:00:55.9]} 38. Rf2 {[%clk 0:00:18.1]} 38... Kxe7 {[%clk
0:00:54.6]} 0-1

[Event "*** Titled Tuesday Blitz"]
[Site "Chess.com"]
[Date "2020.05.05"]
[Round "6"]
[White "ShadowJolteon"]
[Black "Everyfishknows"]
[Result "0-1"]
[WhiteElo "2252"]
[BlackElo "2413"]
[TimeControl "180+1"]
[EndTime "11:07:00 PDT"]
[Termination "Everyfishknows won by resignation"]

1. d4 {[%clk 0:03:00.9]} 1... Nf6 {[%clk 0:02:59.5]} 2. c4 {[%clk 0:03:00.7]}
2... e6 {[%clk 0:02:59.8]} 3. g3 {[%clk 0:03:00.5]} 3... Bb4+ {[%clk 0:03:00]}
4. Bd2 {[%clk 0:02:59.7]} 4... Qe7 {[%clk 0:02:59.9]} 5. Nf3 {[%clk 0:02:59.5]}
5... Nc6 {[%clk 0:02:59.8]} 6. Bg2 {[%clk 0:02:59.8]} 6... Bxd2+ {[%clk
0:02:59.7]} 7. Nbxd2 {[%clk 0:02:58.5]} 7... d6 {[%clk 0:02:59.7]} 8. O-O {[%clk
0:02:58.7]} 8... O-O {[%clk 0:02:57.5]} 9. e4 {[%clk 0:02:58.3]} 9... e5 {[%clk
0:02:57.7]} 10. d5 {[%clk 0:02:58.8]} 10... Nb8 {[%clk 0:02:57.8]} 11. Ne1
{[%clk 0:02:59.4]} 11... a5 {[%clk 0:02:57.5]} 12. Nd3 {[%clk 0:03:00.3]} 12...
Na6 {[%clk 0:02:52.9]} 13. Qc2 {[%clk 0:03:01.2]} 13... Bd7 {[%clk 0:02:39.6]}
14. f4 {[%clk 0:03:00.8]} 14... exf4 {[%clk 0:02:26.4]} 15. gxf4 {[%clk
0:03:01.7]} 15... c6 {[%clk 0:02:16.2]} 16. e5 {[%clk 0:02:44.3]} 16... Ng4
{[%clk 0:02:16.1]} 17. Rae1 {[%clk 0:02:42.1]} 17... Bf5 {[%clk 0:02:11.6]} 18.
h3 {[%clk 0:02:32.3]} 18... Nb4 {[%clk 0:02:04.9]} 19. Qc3 {[%clk 0:02:08.9]}
19... Bxd3 {[%clk 0:01:53.4]} 20. Rf3 {[%clk 0:01:29.5]} 20... Qh4 {[%clk
0:01:36.5]} 21. Nb3 {[%clk 0:00:48.2]} 21... Bxc4 {[%clk 0:01:15.1]} 22. hxg4
{[%clk 0:00:45.8]} 22... Bxd5 {[%clk 0:01:06.5]} 23. Rh3 {[%clk 0:00:41.6]}
23... Qxg4 {[%clk 0:01:01.7]} 24. Rg3 {[%clk 0:00:41.5]} 24... Qxf4 {[%clk
0:00:56.1]} 25. exd6 {[%clk 0:00:40.9]} 25... f6 {[%clk 0:00:47.7]} 26. a3
{[%clk 0:00:31.6]} 26... Bxg2 {[%clk 0:00:32.7]} 27. axb4 {[%clk 0:00:09.7]}
27... axb4 {[%clk 0:00:32.4]} 28. Qc5 {[%clk 0:00:09.4]} 28... Qxg3 {[%clk
0:00:29.2]} 0-1

[Event "*** Titled Tuesday Blitz"]
[Site "Chess.com"]
[Date "2020.05.05"]
[Round "6"]
[White "Apocalyps999"]
[Black "cassoulet"]
[Result "0-1"]
[WhiteElo "2418"]
[BlackElo "2594"]
[TimeControl "180+1"]
[EndTime "11:07:02 PDT"]
[Termination "cassoulet won by resignation"]

1. e4 {[%clk 0:03:00.9]} 1... c6 {[%clk 0:02:56.6]} 2. c4 {[%clk 0:03:00]} 2...
e5 {[%clk 0:02:48.3]} 3. Nf3 {[%clk 0:02:49]} 3... d6 {[%clk 0:02:45.8]} 4. d4
{[%clk 0:02:46.4]} 4... exd4 {[%clk 0:02:45.9]} 5. Nxd4 {[%clk 0:02:47.3]} 5...
Nf6 {[%clk 0:02:45.9]} 6. Nc3 {[%clk 0:02:46.9]} 6... Be7 {[%clk 0:02:45.8]} 7.
Bd3 {[%clk 0:02:46.7]} 7... O-O {[%clk 0:02:45.8]} 8. O-O {[%clk 0:02:46.7]}
8... Re8 {[%clk 0:02:46.2]} 9. h3 {[%clk 0:02:44.8]} 9... Nbd7 {[%clk
0:02:45.6]} 10. Re1 {[%clk 0:02:38.7]} 10... Bf8 {[%clk 0:02:44.9]} 11. Nf5
{[%clk 0:02:37.2]} 11... Nc5 {[%clk 0:02:41.9]} 12. g4 {[%clk 0:02:32.6]} 12...
Bxf5 {[%clk 0:02:34.5]} 13. gxf5 {[%clk 0:02:30.4]} 13... Nfd7 {[%clk
0:02:29.8]} 14. Bf1 {[%clk 0:02:02.8]} 14... Qh4 {[%clk 0:02:15.3]} 15. Qg4
{[%clk 0:01:51.5]} 15... Qxg4+ {[%clk 0:02:08.3]} 16. hxg4 {[%clk 0:01:52.4]}
16... Ne5 {[%clk 0:02:08.7]} 17. Be2 {[%clk 0:01:32.7]} 17... Ned3 {[%clk
0:01:58.7]} 18. Rd1 {[%clk 0:01:14.3]} 18... Nxc1 {[%clk 0:01:48.4]} 19. Raxc1
{[%clk 0:01:15.2]} 19... Nxe4 {[%clk 0:01:48.6]} 20. Bf3 {[%clk 0:01:14.1]}
20... Nf6 {[%clk 0:01:10.5]} 21. b4 {[%clk 0:00:49.4]} 21... Nd7 {[%clk
0:01:08.8]} 22. b5 {[%clk 0:00:45.5]} 22... Ne5 {[%clk 0:01:04.7]} 23. Bg2
{[%clk 0:00:45.6]} 23... Rac8 {[%clk 0:01:00.9]} 24. Rd4 {[%clk 0:00:22.8]}
24... Be7 {[%clk 0:00:45.1]} 25. Re1 {[%clk 0:00:10.3]} 25... Bf6 {[%clk
0:00:40.2]} 26. Rxd6 {[%clk 0:00:09.3]} 26... Nf3+ {[%clk 0:00:39.7]} 27. Bxf3
{[%clk 0:00:08.6]} 27... Rxe1+ {[%clk 0:00:38.7]} 28. Kg2 {[%clk 0:00:09.5]}
28... Bxc3 {[%clk 0:00:39]} 29. bxc6 {[%clk 0:00:08.1]} 29... bxc6 {[%clk
0:00:39]} 30. Bxc6 {[%clk 0:00:09]} 30... g6 {[%clk 0:00:35.4]} 31. f6 {[%clk
0:00:08.4]} 31... Re6 {[%clk 0:00:33.2]} 0-1

[Event "*** Titled Tuesday Blitz"]
[Site "Chess.com"]
[Date "2020.05.05"]
[Round "6"]
[White "adriangschnitzer"]
[Black "doons21"]
[Result "1-0"]
[WhiteElo "2445"]
[BlackElo "2592"]
[TimeControl "180+1"]
[EndTime "11:07:03 PDT"]
[Termination "adriangschnitzer won by resignation"]

1. c4 {[%clk 0:03:00.9]} 1... Nf6 {[%clk 0:03:00.3]} 2. Nc3 {[%clk 0:03:00.6]}
2... g6 {[%clk 0:03:00.8]} 3. e4 {[%clk 0:03:00.2]} 3... d6 {[%clk 0:03:00.6]}
4. d4 {[%clk 0:03:00.5]} 4... Bg7 {[%clk 0:03:01.1]} 5. Be2 {[%clk 0:03:00.1]}
5... O-O {[%clk 0:03:01.2]} 6. Be3 {[%clk 0:02:59.2]} 6... Na6 {[%clk
0:02:53.9]} 7. g4 {[%clk 0:02:57.2]} 7... c6 {[%clk 0:02:53.9]} 8. g5 {[%clk
0:02:56.8]} 8... Nd7 {[%clk 0:02:52.3]} 9. h4 {[%clk 0:02:56.8]} 9... e5 {[%clk
0:02:47.9]} 10. d5 {[%clk 0:02:56.4]} 10... cxd5 {[%clk 0:02:41]} 11. cxd5
{[%clk 0:02:57.3]} 11... f5 {[%clk 0:02:36.3]} 12. gxf6 {[%clk 0:02:50.9]} 12...
Nxf6 {[%clk 0:02:34.3]} 13. h5 {[%clk 0:02:47.7]} 13... gxh5 {[%clk 0:02:33.4]}
14. Bxh5 {[%clk 0:02:48.6]} 14... Nc5 {[%clk 0:02:25.8]} 15. f3 {[%clk
0:02:27.7]} 15... b5 {[%clk 0:02:12]} 16. Qd2 {[%clk 0:01:48]} 16... b4 {[%clk
0:02:08.5]} 17. Nce2 {[%clk 0:01:47.9]} 17... Ba6 {[%clk 0:01:51.9]} 18. O-O-O
{[%clk 0:01:47.7]} 18... Nxh5 {[%clk 0:01:26.7]} 19. Rxh5 {[%clk 0:01:45.9]}
19... Qe8 {[%clk 0:01:26.8]} 20. Ng3 {[%clk 0:01:32.5]} 20... Qa4 {[%clk
0:01:25.2]} 21. Bxc5 {[%clk 0:01:26.7]} 21... Rac8 {[%clk 0:01:03.3]} 22. Kb1
{[%clk 0:01:21.8]} 22... Rxc5 {[%clk 0:00:59.1]} 23. Nf5 {[%clk 0:01:00.2]}
23... Rf7 {[%clk 0:00:34.2]} 24. Rg5 {[%clk 0:00:51.4]} 24... Rfc7 {[%clk
0:00:17.7]} 25. Ne2 {[%clk 0:00:43.1]} 25... b3 {[%clk 0:00:14.1]} 26. axb3
{[%clk 0:00:39.3]} 26... Rc2 {[%clk 0:00:14.1]} 27. bxa4 {[%clk 0:00:26.6]}
27... Rxd2 {[%clk 0:00:13.3]} 28. Rxd2 {[%clk 0:00:27.5]} 1-0

[Event "*** Titled Tuesday Blitz"]
[Site "Chess.com"]
[Date "2020.05.05"]
[Round "6"]
[White "abhidabhi"]
[Black "Savagelittlemole"]
[Result "1-0"]
[WhiteElo "2770"]
[BlackElo "2578"]
[TimeControl "180+1"]
[EndTime "11:07:06 PDT"]
[Termination "abhidabhi won by resignation"]

1. Nf3 {[%clk 0:03:00.9]} 1... Nf6 {[%clk 0:02:50.1]} 2. g3 {[%clk 0:03:00.5]}
2... g6 {[%clk 0:02:49.8]} 3. Bg2 {[%clk 0:03:00.3]} 3... Bg7 {[%clk 0:02:50.4]}
4. b3 {[%clk 0:02:59.9]} 4... O-O {[%clk 0:02:47.5]} 5. Bb2 {[%clk 0:02:59.8]}
5... d6 {[%clk 0:02:48.4]} 6. d4 {[%clk 0:02:57.4]} 6... Nbd7 {[%clk 0:02:47.1]}
7. O-O {[%clk 0:02:57.1]} 7... c5 {[%clk 0:02:47.7]} 8. c4 {[%clk 0:02:56.5]}
8... cxd4 {[%clk 0:02:42.9]} 9. Nxd4 {[%clk 0:02:55.6]} 9... Nc5 {[%clk
0:02:43.1]} 10. Nc3 {[%clk 0:02:53.8]} 10... a6 {[%clk 0:02:42.8]} 11. e4 {[%clk
0:02:48.5]} 11... Bd7 {[%clk 0:02:36.9]} 12. Re1 {[%clk 0:02:45.6]} 12... Rc8
{[%clk 0:02:28]} 13. Qd2 {[%clk 0:02:44.5]} 13... Re8 {[%clk 0:02:25]} 14. Nd5
{[%clk 0:02:41.5]} 14... Nxd5 {[%clk 0:02:22]} 15. exd5 {[%clk 0:02:42.4]} 15...
b5 {[%clk 0:02:15.1]} 16. cxb5 {[%clk 0:02:37.9]} 16... Bxb5 {[%clk 0:02:06.7]}
17. Re3 {[%clk 0:02:09.6]} 17... Qb6 {[%clk 0:01:49.3]} 18. Rae1 {[%clk
0:01:59.3]} 18... Bf6 {[%clk 0:01:36.9]} 19. h4 {[%clk 0:01:39.3]} 19... h5
{[%clk 0:01:29.7]} 20. Nc6 {[%clk 0:01:22.6]} 20... Bxc6 {[%clk 0:01:26.1]} 21.
Bxf6 {[%clk 0:01:16.9]} 21... exf6 {[%clk 0:01:21.4]} 22. dxc6 {[%clk
0:01:17.1]} 22... Rxe3 {[%clk 0:01:10.3]} 23. Rxe3 {[%clk 0:01:16.9]} 23... Qc7
{[%clk 0:01:06]} 24. Qd4 {[%clk 0:01:11]} 24... Kg7 {[%clk 0:01:01.1]} 25. Bd5
{[%clk 0:01:09.5]} 25... Qa5 {[%clk 0:00:50.6]} 26. b4 {[%clk 0:01:01.9]} 26...
Qa4 {[%clk 0:00:48]} 27. Re7 {[%clk 0:00:57.9]} 27... Rf8 {[%clk 0:00:41.3]} 28.
c7 {[%clk 0:00:57.7]} 28... Qa3 {[%clk 0:00:11.5]} 29. bxc5 {[%clk 0:00:53.1]}
29... dxc5 {[%clk 0:00:12.4]} 30. Qf4 {[%clk 0:00:49.2]} 30... Qc3 {[%clk
0:00:09.9]} 31. Rxf7+ {[%clk 0:00:42.6]} 31... Rxf7 {[%clk 0:00:08.9]} 32. c8=Q
{[%clk 0:00:42.8]} 32... Qe1+ {[%clk 0:00:07.5]} 33. Kg2 {[%clk 0:00:42.4]} 1-0

[Event "*** Titled Tuesday Blitz"]
[Site "Chess.com"]
[Date "2020.05.05"]
[Round "6"]
[White "albi1999"]
[Black "Agnes66678"]
[Result "1-0"]
[WhiteElo "2604"]
[BlackElo "2418"]
[TimeControl "180+1"]
[EndTime "11:07:06 PDT"]
[Termination "albi1999 won by resignation"]

1. d4 {[%clk 0:03:00.9]} 1... Nf6 {[%clk 0:02:59.4]} 2. c4 {[%clk 0:03:00.5]}
2... c5 {[%clk 0:02:59.1]} 3. d5 {[%clk 0:03:00.3]} 3... e6 {[%clk 0:02:58.8]}
4. Nc3 {[%clk 0:02:59.8]} 4... exd5 {[%clk 0:02:59.7]} 5. cxd5 {[%clk
0:03:00.7]} 5... d6 {[%clk 0:02:59.6]} 6. e4 {[%clk 0:03:01.2]} 6... g6 {[%clk
0:02:59.8]} 7. h3 {[%clk 0:03:01.8]} 7... Bg7 {[%clk 0:03:00.2]} 8. Nf3 {[%clk
0:03:01]} 8... O-O {[%clk 0:03:00.2]} 9. Bd3 {[%clk 0:03:01.5]} 9... b5 {[%clk
0:03:00.4]} 10. Nxb5 {[%clk 0:03:00.5]} 10... Re8 {[%clk 0:03:00.1]} 11. O-O
{[%clk 0:03:00]} 11... Nxe4 {[%clk 0:03:00.6]} 12. Re1 {[%clk 0:03:00.3]} 12...
a6 {[%clk 0:03:01.1]} 13. Nc3 {[%clk 0:02:59.1]} 13... Nf6 {[%clk 0:03:01.4]}
14. Rxe8+ {[%clk 0:02:57.5]} 14... Nxe8 {[%clk 0:03:02.3]} 15. Bg5 {[%clk
0:02:50.3]} 15... Bf6 {[%clk 0:02:53.6]} 16. Bxf6 {[%clk 0:02:46]} 16... Nxf6
{[%clk 0:02:52.7]} 17. Qd2 {[%clk 0:02:44.4]} 17... Bb7 {[%clk 0:02:50.8]} 18.
Bc4 {[%clk 0:02:40.6]} 18... Nbd7 {[%clk 0:02:49.3]} 19. Rd1 {[%clk 0:02:36.8]}
19... Nb6 {[%clk 0:02:44.5]} 20. b3 {[%clk 0:02:37.1]} 20... Kg7 {[%clk
0:02:44]} 21. Qf4 {[%clk 0:02:34.6]} 21... Qd7 {[%clk 0:02:37.4]} 22. Ng5 {[%clk
0:02:31.4]} 22... Re8 {[%clk 0:02:31.1]} 23. Nge4 {[%clk 0:02:29.4]} 23... Nxe4
{[%clk 0:02:25.5]} 24. Nxe4 {[%clk 0:02:28.4]} 24... Rd8 {[%clk 0:02:04.1]} 25.
Qf6+ {[%clk 0:02:25.5]} 25... Kg8 {[%clk 0:02:04.1]} 26. Nxc5 {[%clk 0:02:18.4]}
26... dxc5 {[%clk 0:01:55.4]} 27. Qxb6 {[%clk 0:02:17.5]} 27... Rc8 {[%clk
0:01:50.7]} 28. Qf6 {[%clk 0:02:15.1]} 28... Qd8 {[%clk 0:01:44.3]} 29. Qf4
{[%clk 0:01:59.9]} 29... Kg7 {[%clk 0:01:32.1]} 30. Rd3 {[%clk 0:01:30.2]} 30...
Qf6 {[%clk 0:01:29.8]} 31. Qxf6+ {[%clk 0:01:25.9]} 31... Kxf6 {[%clk
0:01:30.7]} 32. Rf3+ {[%clk 0:01:26.4]} 32... Kg7 {[%clk 0:01:27.1]} 33. Re3
{[%clk 0:01:21.7]} 33... Rc7 {[%clk 0:01:26.2]} 34. d6 {[%clk 0:01:17.7]} 34...
Rd7 {[%clk 0:01:25.7]} 35. Re7 {[%clk 0:01:18.1]} 35... Bc6 {[%clk 0:01:22.3]}
36. Rxd7 {[%clk 0:01:13.6]} 36... Bxd7 {[%clk 0:01:23.2]} 37. Bxa6 {[%clk
0:01:14.3]} 37... Kf6 {[%clk 0:01:22.7]} 38. Bc4 {[%clk 0:01:14.9]} 38... Ke5
{[%clk 0:01:22.8]} 39. Bxf7 {[%clk 0:01:14.8]} 39... Kxd6 {[%clk 0:01:22.7]} 40.
f4 {[%clk 0:01:15]} 40... Bf5 {[%clk 0:01:20]} 41. Kf2 {[%clk 0:01:14.5]} 41...
Ke7 {[%clk 0:01:19.1]} 42. Bc4 {[%clk 0:01:14]} 42... Kd6 {[%clk 0:01:20]} 43.
g4 {[%clk 0:01:14]} 43... Bb1 {[%clk 0:01:19.1]} 44. a4 {[%clk 0:01:14.1]} 44...
Bc2 {[%clk 0:01:17.5]} 45. Ke3 {[%clk 0:01:13.7]} 45... Bd1 {[%clk 0:01:16.9]}
46. a5 {[%clk 0:01:11.2]} 46... h6 {[%clk 0:01:14.9]} 47. Ke4 {[%clk 0:01:10.6]}
47... Bc2+ {[%clk 0:01:14.1]} 48. Kf3 {[%clk 0:01:10.7]} 48... Kc6 {[%clk
0:01:13.4]} 49. Kg3 {[%clk 0:01:07.6]} 49... Be4 {[%clk 0:01:12.5]} 50. h4
{[%clk 0:01:00.3]} 50... Kd6 {[%clk 0:01:12.6]} 51. h5 {[%clk 0:01:00]} 51...
gxh5 {[%clk 0:01:10.8]} 52. gxh5 {[%clk 0:01:00.9]} 52... Ke7 {[%clk 0:01:10.4]}
53. Kg4 {[%clk 0:01:01.2]} 53... Kf6 {[%clk 0:01:10.5]} 54. a6 {[%clk
0:01:00.8]} 54... Bc6 {[%clk 0:01:07.8]} 55. a7 {[%clk 0:00:53.5]} 55... Be4
{[%clk 0:01:05.5]} 56. Be2 {[%clk 0:00:52.5]} 1-0

[Event "*** Titled Tuesday Blitz"]
[Site "Chess.com"]
[Date "2020.05.05"]
[Round "6"]
[White "BasilSmash"]
[Black "KaterynaLagno"]
[Result "0-1"]
[WhiteElo "2438"]
[BlackElo "2626"]
[TimeControl "180+1"]
[EndTime "11:07:07 PDT"]
[Termination "KaterynaLagno won on time"]

1. d4 {[%clk 0:02:57.8]} 1... Nf6 {[%clk 0:02:59.5]} 2. Nf3 {[%clk 0:02:57.3]}
2... g6 {[%clk 0:02:59.6]} 3. g3 {[%clk 0:02:57.5]} 3... Bg7 {[%clk 0:02:59.9]}
4. Bg2 {[%clk 0:02:57.8]} 4... O-O {[%clk 0:03:00.5]} 5. O-O {[%clk 0:02:57.8]}
5... d5 {[%clk 0:03:01.1]} 6. c4 {[%clk 0:02:57.7]} 6... Nc6 {[%clk 0:02:59.2]}
7. Nc3 {[%clk 0:02:46.2]} 7... dxc4 {[%clk 0:02:57.5]} 8. d5 {[%clk 0:02:36]}
8... Nb4 {[%clk 0:02:57.3]} 9. e4 {[%clk 0:02:34.5]} 9... c6 {[%clk 0:02:55.9]}
10. dxc6 {[%clk 0:02:04.6]} 10... Qxd1 {[%clk 0:02:48.7]} 11. Rxd1 {[%clk
0:02:00.7]} 11... Nxc6 {[%clk 0:02:47.2]} 12. h3 {[%clk 0:01:20.6]} 12... Be6
{[%clk 0:02:31.2]} 13. Ng5 {[%clk 0:01:20.2]} 13... Rad8 {[%clk 0:02:31.2]} 14.
Be3 {[%clk 0:01:15.4]} 14... Bc8 {[%clk 0:02:27.7]} 15. Bf1 {[%clk 0:01:12.9]}
15... Ne5 {[%clk 0:02:19.7]} 16. f4 {[%clk 0:01:05.1]} 16... Nd3 {[%clk
0:02:18.8]} 17. e5 {[%clk 0:00:57]} 17... Nh5 {[%clk 0:02:08.9]} 18. Bxd3 {[%clk
0:00:51.7]} 18... cxd3 {[%clk 0:02:06.4]} 19. g4 {[%clk 0:00:50.9]} 19... Ng3
{[%clk 0:01:59]} 20. Kf2 {[%clk 0:00:49.3]} 20... f6 {[%clk 0:01:56.6]} 21. Nf3
{[%clk 0:00:40.9]} 21... Ne2 {[%clk 0:01:54.3]} 22. Nxe2 {[%clk 0:00:37.2]}
22... dxe2 {[%clk 0:01:55.2]} 23. Kxe2 {[%clk 0:00:37]} 23... Be6 {[%clk
0:01:53.3]} 24. b3 {[%clk 0:00:30.9]} 24... Bd5 {[%clk 0:01:53.2]} 25. exf6
{[%clk 0:00:20.9]} 25... exf6 {[%clk 0:01:53.4]} 26. Kf2 {[%clk 0:00:19.5]}
26... f5 {[%clk 0:01:52.3]} 27. g5 {[%clk 0:00:17.6]} 27... Bxa1 {[%clk
0:01:50.8]} 28. Rxa1 {[%clk 0:00:15.9]} 28... Bxf3 {[%clk 0:01:49.7]} 29. Kxf3
{[%clk 0:00:15.8]} 29... Rfe8 {[%clk 0:01:47.8]} 30. Re1 {[%clk 0:00:03.9]}
30... Rd3 {[%clk 0:01:47]} 31. Kf2 {[%clk 0:00:03.4]} 31... a6 {[%clk 0:01:45]}
32. Re2 {[%clk 0:00:03.5]} 32... Rc3 {[%clk 0:01:44.6]} 33. h4 {[%clk
0:00:03.6]} 33... Kf7 {[%clk 0:01:44.6]} 34. Re1 {[%clk 0:00:02.2]} 34... Rc2+
{[%clk 0:01:44.2]} 35. Re2 {[%clk 0:00:02.4]} 35... Rxe2+ {[%clk 0:01:43.4]} 36.
Kxe2 {[%clk 0:00:03.2]} 36... Ke6 {[%clk 0:01:43.1]} 37. Kd3 {[%clk 0:00:04]}
37... Kd5 {[%clk 0:01:43.4]} 38. Bd2 {[%clk 0:00:04.3]} 38... Re4 {[%clk
0:01:40]} 39. Be3 {[%clk 0:00:04.2]} 39... a5 {[%clk 0:01:39.6]} 40. a4 {[%clk
0:00:02.5]} 40... Rb4 {[%clk 0:01:38.7]} 41. Kc2 {[%clk 0:00:02.1]} 41... b5
{[%clk 0:01:30]} 42. Bd2 {[%clk 0:00:01.5]} 42... Re4 {[%clk 0:01:30.5]} 43.
axb5 {[%clk 0:00:01.5]} 43... Kc5 {[%clk 0:01:30.8]} 44. Bxa5 {[%clk 0:00:01.4]}
44... Rxf4 {[%clk 0:01:29.8]} 0-1